bitfinex/quotes_ETHUSD_20250424
["timestamp","ask_amount","ask_price","bid_price","bid_amount"]
[1745514429601,12.70191663,1771.5,1771.3,0.7551]
[1745514429756,12.70191663,1771.5,1771.3,0.88949257]
[1745514429960,7.05693928,1771.5,1771.3,0.88949257]
[1745514430162,10.51098246,1771.5,1771.3,0.88949257]
[1745514430394,4.866,1771.5,1771.3,0.88949257]
[1745514430891,4.866,1771.5,1771.3,6.53496094]
[1745514431101,4.866,1771.5,1771.3,0.88949257]
[1745514431464,4.866,1771.5,1771.3,6.53494284]
[1745514431796,27.45232271,1771.7,1771.4,0.8043]
[1745514432098,27.45232271,1771.7,1771.4,0.93233647]
[1745514432265,5.64472325,1771.6,1771.4,0.93233647]
[1745514432669,5.64493367,1771.5,1771.4,0.93233647]
[1745514433114,6.64975873,1771.6,1771.4,0.8043]
[1745514433305,6.64975873,1771.6,1771.4,0.93178167]
[1745514433603,5.64493367,1771.5,1771.4,0.93178167]
[1745514433818,6.64985877,1771.6,1771.4,0.93178167]
[1745514433976,6.64985877,1771.6,1771.4,0.8043]
[1745514434177,5.64493367,1771.5,1771.2,0.8076]
[1745514434387,5.64493367,1771.5,1771.3,0.1275662]
[1745514435308,10.06009347,1771.6,1771.3,0.1275662]
[1745514435603,5.64495693,1771.5,1771.3,0.1275662]
[1745514435971,5.64525234,1771.4,1771.3,0.1275662]
[1745514436766,7.77930875,1771.4,1771.3,0.1275662]
[1745514436965,5.64576172,1771.3,1771.1,0.8268]
[1745514437164,5.64576172,1771.3,1771.2,0.1279395]
[1745514437667,5.64576172,1771.3,1771.0,0.8268]
[1745514437867,5.64576172,1771.3,1771.2,0.12791745]
[1745514438078,6.98827852,1771.3,1771.0,0.8268]
[1745514438290,5.64576172,1771.3,1771.0,0.8268]
[1745514439691,11.29157622,1771.3,1771.0,0.8268]
[1745514440000,5.64576172,1771.3,1771.0,0.8268]
[1745514440413,5.64541775,1771.4,1771.1,5.64618318]
[1745514440705,5.64566636,1771.3,1771.0,0.8268]
[1745514440910,5.64604589,1771.2,1771.0,0.8268]
[1745514441499,5.64566636,1771.3,1771.0,0.8268]
[1745514441713,5.64601058,1771.2,1771.0,0.8268]
[1745514443209,5.64663888,1771.0,1770.7,0.8128]
[1745514443806,11.29282843,1771.1,1770.7,6.46001936]
[1745514443967,5.64634482,1771.1,1770.7,6.46001936]
[1745514444303,5.6465626,1771.0,1770.7,6.46001936]
[1745514444513,5.64634482,1771.1,1770.7,6.46001936]
[1745514444806,5.64634482,1771.1,1770.8,6.46684715]
[1745514444993,5.64634482,1771.1,1770.8,0.8197]
[1745514446202,5.64671573,1771.0,1770.8,0.8197]
[1745514446369,11.29350675,1771.0,1770.8,0.8197]
[1745514446570,5.64684623,1770.9,1770.8,0.8197]
[1745514447403,11.29348654,1771.0,1770.8,0.8197]
[1745514447697,5.64671573,1771.0,1770.8,0.8197]
[1745514448103,5.64637762,1771.1,1770.8,0.8197]
[1745514449081,5.56151162,1771.3,1770.8,0.8197]
[1745514449410,5.64637382,1771.1,1770.8,0.8197]
[1745514450118,11.84840157,1771.2,1770.9,0.13096743]
[1745514450410,11.29220632,1771.2,1770.8,6.46681891]
[1745514450713,5.64628184,1771.1,1770.9,0.13096191]
[1745514451077,5.64628184,1771.1,1770.8,0.8197]
[1745514451283,5.64628184,1771.1,1771.0,0.13093836]
[1745514451513,5.64628184,1771.1,1770.8,0.8197]
[1745514451768,5.64628184,1771.1,1771.0,0.13093836]
[1745514451912,11.29274014,1771.1,1770.9,0.13096743]
[1745514452099,5.64607294,1771.2,1770.8,6.46681756]
[1745514452310,5.64607294,1771.2,1771.0,0.13092733]
[1745514452623,5.64607294,1771.2,1771.1,0.13090378]
[1745514452922,5.9607932,1771.2,1771.1,0.13090378]
[1745514453127,5.64623239,1771.1,1770.8,6.46664388]
[1745514453578,11.29272488,1771.1,1770.8,0.8197]
[1745514453782,5.64623239,1771.1,1770.8,0.8197]
[1745514454679,5.64623239,1771.1,1770.8,6.46682808]
[1745514454680,5.96120586,1771.1,1770.8,6.46682808]
[1745514454880,5.96120586,1771.1,1770.8,0.8197]
[1745514455079,6.55732645,1771.1,1770.8,0.8197]
[1745514455725,5.64654637,1771.0,1770.8,0.8197]
[1745514455927,6.55732645,1771.1,1770.8,0.8197]
[1745514456444,5.64655953,1771.0,1770.8,0.8197]
[1745514456940,0.31497347,1771.0,1770.8,0.8197]
[1745514458338,0.31497347,1771.0,1770.8,6.46675324]
[1745514458648,12.20388502,1771.1,1770.8,0.8197]
[1745514459274,0.31497347,1771.0,1770.8,0.8197]
[1745514459438,0.31497347,1771.0,1770.9,5.64684623]
[1745514459642,0.31497347,1771.0,1770.8,6.46684604]
[1745514459949,0.31497347,1771.0,1770.8,6.46664345]
[1745514460106,0.31497347,1771.1,1770.9,5.64684579]
[1745514460441,5.96118603,1771.1,1770.8,6.46664345]
[1745514460644,0.31497347,1771.1,1770.8,6.46664345]
[1745514460846,0.31497347,1771.1,1770.8,7.1133078]
[1745514461502,5.64667741,1771.0,1770.8,0.8197]
[1745514461703,5.64684623,1770.9,1770.6,6.45147958]
[1745514461956,5.64667741,1771.0,1770.6,6.45147958]
[1745514462157,5.96165088,1771.0,1770.6,6.45147958]
[1745514462303,5.6469841,1770.9,1770.6,6.45147958]
[1745514462504,0.31497347,1771.0,1770.7,5.64738986]
[1745514462940,5.96154133,1771.0,1770.7,5.64738986]
[1745514463660,5.96154133,1771.0,1770.6,6.45147958]
[1745514463842,5.96154133,1771.0,1770.7,5.64744462]
[1745514464043,0.31497347,1771.0,1770.7,5.64744462]
[1745514464452,5.96158595,1771.0,1770.7,5.64744462]
[1745514464650,5.96158595,1771.0,1770.6,6.45147864]
[1745514464855,5.64661248,1771.0,1770.6,12.09908243]
[1745514465128,5.64661248,1771.0,1770.7,0.13155287]
[1745514465565,5.64661248,1771.0,1770.6,6.45147864]
[1745514465734,5.64661248,1771.0,1770.8,0.1315238]
[1745514465939,5.64661248,1771.0,1770.7,0.13155287]
[1745514466146,5.64661248,1771.0,1770.9,0.13149473]
[1745514466339,6.77590831,1771.0,1770.8,0.1315238]
[1745514466529,6.77590831,1771.0,1770.9,0.13149473]
[1745514466930,6.77590831,1771.0,1770.6,6.45147864]
[1745514467133,5.64661248,1771.0,1770.9,0.13171673]
[1745514467347,5.96295184,1771.0,1770.7,5.64736997]
[1745514467568,5.96295184,1771.0,1770.9,0.13171673]
[1745514468045,0.31633936,1771.0,1770.7,5.64732517]
[1745514468373,5.64652738,1771.0,1770.9,0.13171673]
[1745514468831,5.64652738,1771.0,1770.7,5.64732517]
[1745514469032,5.64652738,1771.0,1770.9,0.13171673]
[1745514469233,5.64652738,1771.0,1770.7,5.64732517]
[1745514469551,5.64634583,1771.1,1770.9,0.13171673]
[1745514469757,6.38809396,1771.1,1770.8,0.1317458]
[1745514469953,6.38809396,1771.1,1771.0,0.13168766]
[1745514470158,5.64652738,1771.0,1770.9,0.13171673]
[1745514470358,5.64652738,1771.0,1770.7,5.64732517]
[1745514470653,6.38809396,1771.1,1770.7,5.64726979]
[1745514471059,12.03453392,1771.1,1770.7,5.64726979]
[1745514471268,6.38809396,1771.1,1770.7,11.29456952]
[1745514471566,6.38809396,1771.1,1770.7,5.64726979]
[1745514471777,5.96305856,1771.0,1770.7,5.64726979]
[1745514472767,0.31650342,1770.9,1770.7,5.64726979]
[1745514473775,5.64654603,1771.0,1770.7,5.64726979]
[1745514474299,5.64634583,1771.1,1770.7,11.29454541]
[1745514474477,0.31641248,1771.0,1770.7,11.29464643]
[1745514474675,0.31641248,1771.0,1770.7,5.64726979]
[1745514474882,0.31641248,1771.0,1770.9,6.41744623]
[1745514475077,0.31641248,1771.0,1770.8,5.64713656]
[1745514475439,6.43339498,1771.1,1770.8,5.64713656]
[1745514475652,6.43339498,1771.1,1770.7,5.64718222]
[1745514476884,0.31645773,1771.0,1770.8,5.64699499]
[1745514477249,0.31645773,1771.0,1770.7,11.29467331]
[1745514477780,0.31645773,1770.9,1770.8,5.64716512]
[1745514478484,0.31645773,1770.9,1770.8,6.41776512]
[1745514478682,0.31645773,1770.9,1770.8,7.62427279]
[1745514478884,5.96240734,1771.2,1770.9,5.64679901]
[1745514479183,5.96240734,1771.2,1770.8,6.41776512]
[1745514479572,0.31645773,1771.1,1770.8,6.41776512]
[1745514480280,0.31645773,1771.1,1770.9,0.12060674]
[1745514480472,1.16085645,1771.1,1770.9,0.12060674]
[1745514480672,0.31656422,1771.0,1770.8,6.41776512]
[1745514481485,0.31656422,1770.9,1770.8,6.41776512]
[1745514482988,0.31656422,1771.1,1770.8,6.41776512]
[1745514483288,5.96278463,1771.1,1770.8,6.41776512]
[1745514483487,0.7812,1771.0,1770.7,5.64728662]
[1745514483695,0.31656422,1771.0,1770.7,11.2945589]
[1745514483904,0.31656422,1771.0,1770.8,5.64711596]
[1745514484192,0.31656422,1770.9,1770.8,5.64711596]
[1745514484756,0.31656422,1770.9,1770.7,11.29453376]
[1745514484956,0.31656422,1770.9,1770.7,5.64726148]
[1745514485191,0.31656422,1770.9,1770.8,0.7601]
[1745514486101,0.31656422,1770.9,1770.8,6.40726512]
[1745514486257,0.31656422,1770.9,1770.6,5.64763787]
[1745514486457,0.31656422,1770.9,1770.6,12.05273222]
[1745514486787,0.31656422,1770.9,1770.8,5.64716512]
[1745514486950,19.25146168,1771.3,1770.9,5.64673423]
[1745514487149,5.64590269,1771.2,1770.9,5.64673423]
[1745514487354,12.60056856,1771.3,1770.9,5.64662659]
[1745514487564,0.8284,1771.4,1771.2,5.64588979]
[1745514487762,16.94,1771.9,1771.2,5.64588979]
[1745514487763,0.8284,1771.7,1771.5,5.64465429]
[1745514487977,0.31696137,1771.6,1771.4,5.64496008]
[1745514488165,0.31696137,1771.6,1771.5,5.64493367]
[1745514488370,0.31696137,1771.6,1771.5,6.42243367]
[1745514488599,0.31696137,1771.8,1771.5,0.7775]
[1745514488780,12.28423901,1771.8,1771.4,6.42255422]
[1745514488961,12.28427486,1771.8,1771.4,6.42255422]
[1745514489156,6.39949272,1771.6,1771.2,5.6457752]
[1745514489361,5.64513872,1771.5,1771.1,6.43322535]
[1745514489589,5.64536098,1771.4,1771.0,5.64634894]
[1745514489761,6.80610709,1771.4,1771.0,11.29268096]
[1745514489962,1.16074611,1771.4,1771.1,5.64616954]
[1745514490386,1.16074611,1771.4,1771.0,5.64633202]
[1745514490701,1.47770748,1771.4,1771.1,5.64614731]
[1745514490900,0.31696137,1771.4,1771.2,5.64569001]
[1745514491264,0.31696137,1771.5,1771.2,5.64569001]
[1745514491775,5.9618976,1771.5,1771.1,5.64598546]
[1745514492898,6.37675319,1771.5,1771.1,5.64598546]
[1745514493695,0.31696137,1771.5,1771.1,5.64598546]
[1745514493899,0.31696137,1771.5,1771.2,5.64579153]
[1745514494103,0.779,1771.3,1771.1,5.64612145]
[1745514494322,1.09596137,1771.5,1771.2,5.64588979]
[1745514494514,6.74092023,1771.5,1771.2,5.64588979]
[1745514494863,1.09596137,1771.5,1771.2,5.64588979]
[1745514495176,1.09596137,1771.5,1771.3,0.10571552]
[1745514495177,0.31696137,1771.5,1771.3,0.10571552]
[1745514495370,0.31696137,1771.5,1771.4,5.64525234]
[1745514495574,4.862,1771.6,1771.4,5.64525234]
[1745514495776,4.862,1771.6,1771.4,5.75093881]
[1745514495977,4.862,1771.6,1771.4,11.39597343]
[1745514496165,4.862,1771.6,1771.4,5.75072109]
[1745514496365,1.09459399,1771.7,1771.6,5.64461503]
[1745514496366,0.31559399,1771.7,1771.6,5.64461503]
[1745514496766,5.94449399,1771.9,1771.6,5.75024341]
[1745514497196,0.31559399,1771.9,1771.7,5.6441961]
[1745514497400,0.31559399,1771.9,1771.5,0.8052]
[1745514497599,0.31559399,1771.9,1771.6,5.64448825]
[1745514497780,11.60276171,1772.0,1771.6,5.64448825]
[1745514497985,5.95914614,1772.0,1771.6,5.64442398]
[1745514498281,6.39263373,1772.0,1771.5,6.44994926]
[1745514498487,0.7679,1771.8,1771.5,6.44994926]
[1745514498701,6.41194608,1771.8,1771.5,6.44994926]
[1745514498900,6.41194608,1771.8,1771.4,5.64506537]
[1745514499198,6.41194608,1771.8,1771.4,5.64502932]
[1745514499400,5.64506303,1771.5,1771.1,6.44641023]
[1745514499604,5.64506303,1771.5,1771.1,5.64601023]
[1745514499990,6.65009851,1771.5,1771.0,6.44672376]
[1745514500197,6.65009851,1771.5,1771.1,5.64618532]
[1745514501205,6.41674049,1771.6,1771.2,5.64575791]
[1745514501504,6.73221185,1771.6,1771.2,5.64575791]
[1745514501709,12.3770873,1771.6,1771.2,5.64575791]
[1745514502009,5.64494267,1771.5,1771.1,5.64602939]
[1745514502370,5.96041403,1771.5,1771.1,5.64602939]
[1745514502568,5.96041403,1771.5,1771.1,11.29203405]
[1745514502907,0.7817,1771.4,1771.0,6.44680575]
[1745514503114,6.42706599,1771.4,1771.0,6.44679685]
[1745514503301,6.42706599,1771.4,1771.0,7.65614439]
[1745514503478,6.74253735,1771.4,1771.0,7.65614439]
[1745514504110,6.74253735,1771.4,1771.0,7.65605787]
[1745514504430,1.09717136,1771.4,1771.1,5.64617477]
[1745514504631,0.7817,1771.4,1771.1,5.64617477]
[1745514504833,0.433595,1771.5,1771.2,5.6457399]
[1745514505040,15.08509821,1771.6,1771.2,5.6457399]
[1745514505237,5.64493401,1771.5,1771.1,5.64611712]
[1745514505540,5.64493401,1771.5,1771.0,6.44677693]
[1745514505541,5.96030908,1771.5,1771.0,6.44676236]
[1745514505838,5.64525721,1771.4,1771.1,5.64607789]
[1745514506648,5.64525721,1771.4,1771.0,6.44671467]
[1745514506826,5.64493401,1771.5,1771.1,5.64600458]
[1745514507334,5.64528695,1771.4,1771.1,5.64600458]
[1745514507630,5.64528695,1771.4,1771.0,6.44682313]
[1745514507942,5.64590422,1771.2,1770.9,6.42375258]
[1745514508227,6.41387269,1771.3,1770.9,6.42375258]
[1745514510630,6.41387269,1771.3,1770.9,12.07038286]
[1745514510834,0.7683,1771.3,1770.9,8.11686857]
[1745514511039,0.7683,1771.3,1771.0,5.64628528]
[1745514511622,6.4138964,1771.3,1770.9,0.7771]
[1745514511827,6.4138964,1771.3,1770.9,6.42382607]
[1745514512047,5.64605743,1771.2,1770.9,0.7771]
[1745514512360,6.41486367,1771.0,1770.6,6.42474063]
[1745514512532,0.7683,1770.7,1770.3,6.42563412]
[1745514512738,0.7683,1770.7,1770.4,5.64842646]
[1745514512945,6.41588831,1770.7,1770.3,12.07419851]
[1745514513159,6.84005718,1770.7,1770.3,0.7771]
[1745514513332,6.84005718,1770.7,1770.3,6.42581279]
[1745514513333,7.5240629,1770.7,1770.3,6.42581279]
[1745514513538,13.1718411,1770.7,1770.3,6.42581279]
[1745514513751,13.1718411,1770.7,1770.3,5.64871279]
[1745514513930,5.64821894,1770.5,1770.1,6.45247856]
[1745514514131,5.64821894,1770.5,1770.1,6.45247509]
[1745514514348,5.64821894,1770.5,1770.1,5.64917509]
[1745514514658,6.77783919,1770.5,1770.1,5.64917509]
[1745514514855,5.64798356,1770.6,1770.2,5.64886179]
[1745514515154,5.96276295,1770.6,1770.2,5.64886179]
[1745514515454,11.61084956,1770.6,1770.2,5.64886179]
[1745514515861,5.64817891,1770.5,1770.2,5.64886179]
[1745514516261,5.64817891,1770.5,1770.1,5.64920743]
[1745514516649,5.64817891,1770.5,1770.0,5.64952793]
[1745514516650,5.64847342,1770.4,1770.0,5.64952793]
[1745514516959,5.64847342,1770.4,1769.9,6.45312525]
[1745514516960,5.64877471,1770.3,1769.9,6.45312525]
[1745514517164,5.64877471,1770.3,1769.9,12.10295843]
[1745514517326,5.64877471,1770.3,1769.9,6.45311225]
[1745514517529,0.8024,1770.4,1770.1,5.64928016]
[1745514517723,0.8024,1770.4,1770.0,5.64956484]
[1745514518063,0.8024,1770.4,1769.9,0.8033]
[1745514518434,0.8024,1770.4,1770.1,5.64934786]
[1745514518639,6.45084602,1770.4,1770.0,5.6494934]
[1745514518865,6.45084602,1770.4,1770.0,11.2989868]
[1745514519265,0.8024,1770.4,1770.0,1.21022868]
[1745514519481,0.8327,1770.6,1770.3,5.64863938]
[1745514519689,0.8327,1770.6,1770.3,11.29730567]
[1745514519854,0.8327,1770.6,1770.3,11.29716688]
[1745514520374,0.8327,1770.6,1770.3,5.64858283]
[1745514520770,0.8327,1770.6,1770.3,5.6485669]
[1745514521385,0.8327,1770.6,1770.3,5.64854942]
[1745514522086,6.48053269,1770.6,1770.2,5.6489019]
[1745514522260,6.48053269,1770.6,1770.0,0.788]
[1745514522261,1.00503548,1770.4,1770.0,6.43758822]
[1745514522452,6.65352027,1770.4,1770.0,12.08704001]
[1745514522656,5.64824943,1770.5,1770.1,5.64934873]
[1745514523198,11.29665814,1770.5,1770.1,5.64934873]
[1745514523692,5.6484933,1770.4,1770.0,12.08701502]
[1745514523879,5.6484933,1770.4,1770.0,6.43749104]
[1745514524053,0.8011,1770.3,1770.0,5.64949104]
[1745514524568,0.8309,1770.5,1770.2,5.64884723]
[1745514524754,0.8309,1770.5,1770.3,5.64873893]
[1745514524955,0.8309,1770.5,1770.2,5.64884723]
[1745514525174,0.8309,1770.5,1770.4,0.11725884]
[1745514525387,6.47904414,1770.5,1770.3,0.11728793]
[1745514525552,6.47904414,1770.5,1769.7,4.861]
[1745514525553,0.64790441,1770.4,1770.1,5.64927109]
[1745514525756,6.47917857,1770.5,1770.1,11.2984584]
[1745514525979,6.47917857,1770.5,1770.1,5.64918731]
[1745514526371,5.64851308,1770.4,1770.0,11.29908475]
[1745514526570,6.47917857,1770.5,1770.0,5.64952727]
[1745514526892,6.47917857,1770.5,1770.2,5.64906281]
[1745514527117,7.86144179,1770.5,1770.1,5.64918971]
[1745514527613,5.64846989,1770.4,1770.1,5.64918971]
[1745514528020,5.64881461,1770.3,1770.0,5.64954315]
[1745514528194,5.64846989,1770.4,1769.9,5.64982164]
[1745514528393,6.4346332,1770.4,1770.0,5.6495265]
[1745514528703,0.78616331,1770.4,1770.1,5.64923137]
[1745514528901,6.4346048,1770.4,1770.0,5.64954158]
[1745514529281,12.0832964,1770.4,1770.0,5.64954158]
[1745514529603,6.47918653,1770.5,1770.2,5.64903984]
[1745514530116,5.6485362,1770.4,1770.0,5.64952275]
[1745514530916,0.7863,1770.3,1769.9,5.64983949]
[1745514531122,6.43517537,1770.3,1769.9,5.64983949]
[1745514531325,6.43517537,1770.3,1769.9,5.6499692]
[1745514531508,7.74405842,1770.3,1769.8,11.31706664]
[1745514531689,7.74405842,1770.3,1769.7,5.65047861]
[1745514531690,0.7748,1770.2,1769.7,5.65047861]
[1745514532020,7.42916332,1770.2,1769.9,5.6500322]
[1745514532224,0.7748,1770.2,1769.9,5.6500322]
[1745514532521,0.7748,1770.2,1770.0,5.64948534]
[1745514533019,0.7748,1770.2,1770.0,5.6496761]
[1745514534223,0.7944,1770.4,1770.0,1.12995779]
[1745514534391,0.7944,1770.4,1770.0,5.64962039]
[1745514534596,6.44297046,1770.4,1770.0,5.64962039]
[1745514534830,6.44297046,1770.4,1770.0,11.29924729]
[1745514535027,6.44297046,1770.4,1770.0,5.64962039]
[1745514535324,5.64885144,1770.3,1769.9,6.40416126]
[1745514535504,6.44297046,1770.4,1770.0,5.64961573]
[1745514535706,0.64429705,1770.3,1770.0,5.64961573]
[1745514535904,6.44297046,1770.4,1770.0,5.64949296]
[1745514536430,5.6487654,1770.3,1769.9,5.64989914]
[1745514537425,5.70502975,1770.3,1769.8,10.51215507]
[1745514537730,5.70502975,1770.3,1769.8,10.51213201]
[1745514537731,0.8108,1770.2,1769.8,10.51213201]
[1745514538119,6.459885,1770.2,1769.8,10.51213201]
[1745514538529,0.8108,1770.2,1769.9,5.65002044]
[1745514538713,6.45997397,1770.2,1769.8,10.51213201]
[1745514539034,6.45997397,1770.2,1769.8,5.65013201]
[1745514539213,7.70238023,1770.2,1769.8,5.65013201]
[1745514539398,8.01770349,1770.2,1769.8,5.65013201]
[1745514539921,8.01770349,1770.2,1769.8,11.30025968]
[1745514540116,8.45036157,1770.2,1769.9,0.11873304]
[1745514540435,5.64941054,1770.1,1769.9,0.11873304]
[1745514540594,5.64941054,1770.1,1769.7,16.16300149]
[1745514540801,5.64941054,1770.1,1770.0,0.11870396]
[1745514541098,2.48586434,1770.2,1770.0,0.11857703]
[1745514541298,8.13509302,1770.2,1770.0,0.11857703]
[1745514541498,8.13509302,1770.2,1769.8,5.65015622]
[1745514541733,8.13509302,1770.2,1770.1,0.11894232]
[1745514542285,5.65059343,1769.8,1769.4,0.7752]
[1745514542445,0.821,1769.7,1769.5,0.11911128]
[1745514543667,6.47180966,1769.7,1769.5,0.11911128]
[1745514543871,5.65099457,1769.6,1769.5,0.11911128]
[1745514544847,5.65187076,1769.4,1769.0,5.6547]
[1745514545079,6.46439934,1769.3,1769.1,0.11925526]
[1745514545281,5.65227221,1769.2,1769.1,0.11925526]
[1745514545648,5.65227221,1769.2,1768.8,5.6535444]
[1745514545848,5.65227221,1769.2,1768.9,0.11952883]
[1745514546048,5.65266713,1769.1,1768.9,0.11952883]
[1745514546378,5.65266713,1769.1,1768.7,10.7471097]
[1745514546379,5.65338382,1768.9,1768.7,0.2303207]
[1745514547043,0.7844,1768.8,1768.7,0.2303207]
[1745514547246,6.49421477,1768.8,1768.7,0.2303207]
[1745514547599,6.85819479,1768.8,1768.7,0.2303207]
[1745514547892,0.7844,1768.8,1768.7,0.2303207]
[1745514548387,6.43795042,1768.8,1768.7,0.2303207]
[1745514548569,5.65355042,1768.8,1768.7,0.2303207]
[1745514548887,7.63743246,1768.8,1768.7,0.2303207]
[1745514549060,7.69369681,1768.8,1768.7,0.2303207]
[1745514549796,7.63743246,1768.8,1768.7,0.2303207]
[1745514551195,1.16707306,1768.8,1768.7,0.2303207]
[1745514551397,6.82062348,1768.8,1768.7,0.2303207]
[1745514551779,1.16707306,1768.8,1768.7,0.2303207]
[1745514552177,0.7527,1768.8,1768.7,5.88419077]
[1745514552406,0.7708,1769.0,1768.8,5.65341548]
[1745514552607,5.6526134,1769.1,1768.7,5.88403346]
[1745514552773,5.65291288,1769.0,1768.7,0.2303207]
[1745514553322,5.65310318,1769.0,1768.7,0.2303207]
[1745514554011,12.85497037,1769.1,1768.7,0.2303207]
[1745514554215,5.65292704,1769.0,1768.7,0.2303207]
[1745514554519,5.65310651,1769.0,1768.7,0.2303207]
[1745514554806,6.93863096,1769.0,1768.7,0.2303207]
[1745514555104,1.28552445,1769.0,1768.8,0.13397239]
[1745514555271,6.93857818,1769.0,1768.8,0.13397239]
[1745514555467,0.7673,1768.9,1768.8,0.13397239]
[1745514555671,6.47679517,1768.9,1768.7,0.2303207]
[1745514555899,6.30122994,1768.8,1768.7,0.2303207]
[1745514556103,0.64767952,1768.8,1768.7,0.2303207]
[1745514556308,6.4206539,1768.9,1768.7,0.2303207]
[1745514556472,5.65355042,1768.8,1768.7,0.2303207]
[1745514557242,7.49305025,1768.8,1768.7,0.2303207]
[1745514559051,12.35705025,1768.8,1768.7,0.2303207]
[1745514559211,12.3007859,1768.8,1768.7,0.2303207]
[1745514559532,14.09619988,1768.8,1768.7,0.2303207]
[1745514560132,17.09619988,1768.8,1768.7,0.2303207]
[1745514561645,17.09619988,1768.8,1768.7,1e-08]
[1745514561840,17.93364946,1768.8,1767.6,0.7937]
[1745514562040,11.31320106,1767.9,1767.6,0.7937]
[1745514562242,5.6567485,1767.8,1767.7,0.13797585]
[1745514562567,5.6567485,1767.8,1767.4,0.7937]
[1745514562729,6.66160668,1767.9,1767.7,0.13975142]
[1745514562730,5.6565712,1767.9,1767.7,0.13975142]
[1745514562926,5.65714434,1767.7,1767.4,1.43890484]
[1745514563126,6.52540769,1768.0,1767.8,0.13976373]
[1745514563127,6.46930016,1768.0,1767.8,0.13976373]
[1745514563362,11.3325598,1768.2,1767.7,5.6568681]
[1745514563576,4.864,1768.2,1767.9,5.79615787]
[1745514563755,12.12304552,1768.4,1768.0,0.8107]
[1745514563942,8.26723884,1768.4,1768.0,6.60780291]
[1745514564137,6.46793074,1768.4,1768.0,6.60780291]
[1745514564615,3.813,1768.4,1768.0,0.95179761]
[1745514564742,5.65544463,1768.3,1768.0,0.95179761]
[1745514564946,0.813,1768.4,1768.0,6.60759367]
[1745514565145,5.65529427,1768.3,1768.0,1.61255698]
[1745514565339,5.65547731,1768.2,1768.0,0.14109761]
[1745514565739,5.65547731,1768.2,1767.8,6.41282305]
[1745514566041,5.65547731,1768.2,1768.1,0.13945351]
[1745514566244,5.65547731,1768.2,1767.8,0.7561]
[1745514566448,5.65547731,1768.2,1768.1,0.13934216]
[1745514566643,5.65547731,1768.2,1767.8,6.41283989]
[1745514566644,6.79218311,1768.2,1767.8,6.41283989]
[1745514566974,5.65642714,1768.0,1767.6,0.8316]
[1745514567136,5.65642714,1768.0,1767.9,0.13940049]
[1745514567338,11.31285428,1768.0,1767.6,0.8316]
[1745514567572,5.65642714,1768.0,1767.9,0.13928988]
[1745514567766,6.86270255,1768.0,1767.6,0.8316]
[1745514567976,6.86270255,1768.0,1767.9,0.13923458]
[1745514567977,6.86263804,1768.0,1767.9,0.13923458]
[1745514568288,6.86263804,1768.0,1767.6,6.48898331]
[1745514568458,1.20627541,1768.0,1767.9,0.1444117]
[1745514568653,6.862384,1768.0,1767.9,0.14463446]
[1745514568869,1.20627541,1768.0,1767.9,0.14463446]
[1745514569065,1.20627541,1768.0,1767.6,6.48876991]
[1745514569381,5.65614693,1768.0,1767.6,6.48876991]
[1745514569544,5.65650964,1767.9,1767.7,0.14469278]
[1745514569948,5.65652593,1767.9,1767.7,0.14469278]
[1745514570170,5.65623758,1768.0,1767.7,0.14469278]
[1745514570374,5.656466,1767.9,1767.7,0.14469278]
[1745514570577,5.65623758,1768.0,1767.7,0.14469278]
[1745514570874,5.65644298,1767.9,1767.7,0.14469278]
[1745514571582,6.29683765,1768.0,1767.7,0.14469278]
[1745514571946,5.65643414,1767.9,1767.7,0.14469278]
[1745514572772,5.65643414,1767.9,1767.5,5.65747634]
[1745514572984,5.65643414,1767.9,1767.8,0.14478882]
[1745514573290,5.65678889,1767.8,1767.4,6.41757077]
[1745514573470,12.50846919,1767.9,1767.5,5.65769647]
[1745514573649,12.50843625,1767.9,1767.5,5.65769647]
[1745514573854,5.65675244,1767.8,1767.4,6.41751245]
[1745514574289,5.65709523,1767.7,1767.4,0.7597]
[1745514574585,6.78848,1767.7,1767.4,0.7597]
[1745514575453,1.13138477,1767.7,1767.4,0.7597]
[1745514576005,6.78854315,1767.7,1767.4,0.7597]
[1745514576782,1.13138477,1767.7,1767.4,6.41759827]
[1745514576969,5.6571622,1767.7,1767.4,0.7597]
[1745514577504,6.41240144,1767.8,1767.4,0.7597]
[1745514577710,6.87683504,1767.9,1767.4,6.41771202]
[1745514577894,12.53354848,1767.9,1767.4,6.41749701]
[1745514578207,5.6815,1767.9,1767.5,5.65766704]
[1745514578376,4.867,1767.9,1767.6,5.65729201]
[1745514578708,10.52345016,1767.9,1767.5,5.65766704]
[1745514579084,4.867,1767.9,1767.6,5.65729371]
[1745514579384,4.867,1767.9,1767.7,0.7971]
[1745514579710,6.29687319,1768.0,1767.7,0.7971]
[1745514579711,4.866,1768.1,1767.7,6.45395569]
[1745514579914,10.5217998,1768.1,1767.7,6.45395569]
[1745514580136,0.7807,1768.3,1767.7,2.00822042]
[1745514580406,5.65553262,1768.2,1767.8,11.31333404]
[1745514580604,5.6557993,1768.1,1767.7,7.66510398]
[1745514580806,5.65553262,1768.2,1767.7,7.66506034]
[1745514580978,11.31126896,1768.2,1767.8,5.65671116]
[1745514581179,5.65583306,1768.1,1767.7,7.66506034]
[1745514581373,5.65583306,1768.1,1767.7,2.00822042]
[1745514581374,5.65612666,1768.0,1767.7,2.00822042]
[1745514581708,5.65612666,1768.0,1767.7,0.7971]
[1745514581874,5.65665976,1767.9,1767.5,0.8313]
[1745514582075,5.65704964,1767.8,1767.3,5.65811273]
[1745514582278,5.65704964,1767.8,1767.4,5.65798058]
[1745514582585,5.65661499,1767.9,1767.4,5.65793062]
[1745514582804,6.22241701,1767.8,1767.4,5.65793062]
[1745514583113,6.22241701,1767.8,1767.4,5.65786105]
[1745514583673,12.35303723,1768.0,1767.6,5.65733878]
[1745514583875,12.35303723,1768.0,1767.6,0.7933]
[1745514583876,5.65646359,1767.9,1767.6,0.7933]
[1745514585107,5.65646359,1767.9,1767.7,0.1230048]
[1745514585108,5.6567485,1767.8,1767.7,0.1230048]
[1745514585413,5.6567485,1767.8,1767.4,6.44151849]
[1745514585618,6.78806971,1767.8,1767.7,0.12299373]
[1745514585815,6.78806971,1767.8,1767.4,6.44162794]
[1745514586108,7.10373864,1767.8,1767.7,0.1229882]
[1745514586278,7.10373864,1767.8,1767.4,6.44162794]
[1745514586478,7.10373864,1767.8,1767.7,0.1229882]
[1745514586687,7.10373864,1767.8,1767.4,0.7836]
[1745514586912,7.10373864,1767.8,1767.7,0.1229882]
[1745514586913,7.95980299,1767.8,1767.7,0.1229882]
[1745514587104,5.6572,1767.7,1767.3,5.65811596]
[1745514587306,5.97276258,1767.7,1767.3,5.65811596]
[1745514587493,5.97276258,1767.7,1767.4,0.12308678]
[1745514587885,5.97276258,1767.7,1767.3,5.65811596]
[1745514588112,5.97276258,1767.7,1767.5,0.12310186]
[1745514588325,5.97276258,1767.7,1767.3,5.65811596]
[1745514588326,7.32882581,1767.7,1767.4,0.12313104]
[1745514588482,7.32882581,1767.7,1767.6,0.12307269]